fUSD/lending_fUSD_20250321
["ID","MTS","AMOUNT","RATE_DAILY","PERIOD"]
[356497157,1742553362671,-1000.0,0.000118,2]
[356497158,1742553362694,-40741.0642,0.000118,2]
[356497159,1742553362716,-2550.20398436,0.000118,2]
[356497160,1742553362739,-316.79747229,0.000118,2]
[356497161,1742553362760,-200.0,0.00011805,2]
[356497162,1742553362782,-2550.20398428,0.00011811,2]
[356497163,1742553362803,-150.0,0.00011816,2]
[356497164,1742553362827,-2550.20398428,0.00011822,2]
[356497165,1742553362850,-2550.20398428,0.00011833,2]
[356497166,1742553362873,-2550.20398428,0.00011844,2]
[356497167,1742553362894,-2550.20398428,0.00011856,2]
[356497168,1742553362915,-2550.20398428,0.00011867,2]
[356497169,1742553362935,-2550.20398428,0.00011878,2]
[356497170,1742553362956,-2550.20398428,0.00011889,2]
[356497171,1742553362981,-502.59159588,0.000119,2]
[356497172,1742553363002,-151.0,0.000119,2]
[356497173,1742553363023,-151.0,0.000119,2]
[356497174,1742553363045,-151.0,0.000119,2]
[356497175,1742553363068,-151.0,0.000119,2]
[356497176,1742553363090,-151.0,0.000119,2]
[356497177,1742553363114,-151.0,0.000119,2]
[356497178,1742553363136,-158.883805,0.000119,2]
[356497179,1742553363159,-158.883805,0.000119,2]
[356497180,1742553363184,-238.283776,0.000119,2]
[356497181,1742553363206,-238.283776,0.000119,2]
[356497182,1742553363229,-381114.92400303,0.000119,2]
[356497194,1742553656095,1067.62,9.591e-05,2]
[356497195,1742553704549,700.12801588,0.00025,90]
[356497203,1742554090811,150.0,0.00010544,7]
[356497209,1742554231937,-4872.37,0.00010554,2]
[356497210,1742554231951,-213.185076,0.00010881,2]
[356497211,1742554231963,-172.80004767,0.00010882,2]
[356497212,1742554231974,-287.99,0.00010936,2]
[356497213,1742554231986,-350.0,0.00010944,2]
[356497214,1742554231997,-350.0,0.00010957,2]
[356497215,1742554232008,-200.0,0.00010959,2]
[356497216,1742554232018,-287.99,0.00010959,2]
[356497217,1742554232029,-287.99,0.00010982,2]
[356497218,1742554232041,-287.99,0.00011005,2]
[356497219,1742554232052,-287.99,0.00011028,2]
[356497220,1742554232063,-287.99,0.00011051,2]
[356497221,1742554232074,-287.99,0.00011074,2]
[356497222,1742554232085,-287.99,0.00011097,2]
[356497223,1742554232096,-287.99,0.0001112,2]
[356497224,1742554232108,-287.99,0.00011143,2]
[356497225,1742554232120,-287.99,0.00011166,2]
[356497226,1742554232131,-287.99,0.00011189,2]
[356497227,1742554232142,-287.99,0.00011212,2]
[356497229,1742554232153,-300.0,0.00011234,2]
[356497231,1742554232164,-287.99,0.00011235,2]
[356497233,1742554232175,-287.99,0.00011258,2]
[356497236,1742554232186,-287.99,0.00011281,2]
[356497238,1742554232198,-287.99,0.00011304,2]
[356497240,1742554232209,-287.99,0.00011327,2]
[356497242,1742554232224,-287.99,0.0001135,2]
[356497244,1742554232235,-287.99,0.00011373,2]
[356497246,1742554232246,-8000.0,0.0001144,2]
[356497249,1742554232257,-150.0,0.00011444,2]
[356497251,1742554232267,-3051.61,0.00011444,2]
[356497253,1742554232279,-205.3341069,0.00011543,2]
[356497255,1742554232290,-150.0,0.00011577,2]
[356497257,1742554232301,-434.47129682,0.00011715,2]
[356497259,1742554232313,-1000.0,0.00011799,2]
[356497264,1742554232324,-25815.2321,0.000118,2]
[356497267,1742554232339,-8847.4047,0.000118,2]
[356497270,1742554232350,-1681.8849,0.000118,2]
[356497273,1742554232361,-500.0,0.000118,2]
[356497276,1742554232373,-1000.0,0.000118,2]
[356497279,1742554232384,-817.38,0.000118,2]
[356497282,1742554232395,-255.0203985,0.000118,2]
[356497284,1742554232407,-234.4401,0.000118,2]
[356497286,1742554232418,-2500.0,0.000118,2]
[356497288,1742554232428,-1000.0,0.000118,2]
[356497290,1742554232440,-390.4038,0.00011811,2]
[356497292,1742554232452,-255.02039842,0.00011811,2]
[356497320,1742554232702,-255.02039842,0.00011822,2]
[356497322,1742554232716,-1132.319,0.00011825,2]
[356497324,1742554232726,-255.02039842,0.00011833,2]
[356497326,1742554232736,-255.02039842,0.00011844,2]
[356497328,1742554232745,-1067.62,0.00011855,2]
[356497330,1742554232754,-6649.9749,0.00011855,2]
[356497332,1742554232764,-255.02039842,0.00011856,2]
[356497334,1742554232773,-255.02039842,0.00011867,2]
[356497336,1742554232782,-255.02039842,0.00011878,2]
[356497338,1742554232792,-255.02039842,0.00011889,2]
[356497340,1742554232801,-11529.277,0.00011892,2]
[356497342,1742554232812,-1629.6333611,0.00011895,2]
[356497344,1742554232823,-302.0,0.00011899,2]
[356497346,1742554232832,-183.48640085,0.00011899,2]
[356497348,1742554232842,-178.94819271,0.000119,2]
[356497350,1742554232851,-255.02039842,0.000119,2]
[356497352,1742554232861,-133752.45195192,0.000119,2]
[356497354,1742554232870,-625.48823,0.000119,6]
[356497356,1742554232879,-524.18408958,0.000119,2]
[356497358,1742554232889,-626.0678705,0.000119,2]
[356497360,1742554232899,-46857.2441933,0.000119,2]
[356497363,1742554232911,-899.55707564,0.000119,2]
[356497392,1742554237979,-413.38906643,0.00011891,2]
[356497393,1742554237989,-500.0,0.00011891,2]
[356497394,1742554237999,-571.72937744,0.00011891,2]
[356497395,1742554238009,-1119.83595356,0.000119,2]
[356497396,1742554238019,-1424.39299013,0.000119,2]
[356497397,1742554238029,-316.30314631,0.000119,2]
[356497398,1742554238039,-154.82085397,0.000119,2]
[356497399,1742554238049,-524.6884437,0.00011939,2]
[356497400,1742554238059,-3761.5957207,0.00011947,2]
[356497401,1742554238069,-19002.9670454,0.00011955,2]
[356497402,1742554238079,-4461.1084178,0.00011955,2]
[356497403,1742554238088,-411.3569873,0.00011963,2]
[356497404,1742554238098,-5368.0,0.00011973,2]
[356497405,1742554238108,-500.0,0.00011973,2]
[356497406,1742554238117,-1480.8309076,0.00011992,2]
[356497407,1742554238127,-373.7958214,0.00011992,2]
[356497408,1742554238137,-17267.7987626,0.00011992,2]
[356497410,1742554238147,-4053.7628799,0.00011992,2]
[356497412,1742554238157,-3409.9369637,0.00011992,2]
[356497414,1742554238166,-475.6371102,0.00011992,2]
[356497417,1742554238176,-633.0,0.00012,2]
[356497420,1742554238186,-17875.04955186,0.00012,2]
[356497619,1742554240171,-4487.86932066,0.00012,2]
[356497626,1742554240223,-1230.9102667,0.00012,2]
[356497638,1742554240331,-657.56235491,0.00012,2]
[356497805,1742554245871,-1000.0,0.000118,2]
[356497806,1742554245882,-18951.50666079,0.00012,2]
[356497807,1742554246138,-698.828,0.00012,2]
[356497808,1742554687711,983.25,9.34e-05,2]
[356497809,1742555305136,150.0,0.00010865,7]
[356497810,1742555347996,428.14,9e-05,2]
[356497818,1742555432033,-182.31,0.00010819,2]
[356497819,1742555432043,-150.0,0.00010877,2]
[356497820,1742555432052,-890.34758095,0.00010936,2]
[356497821,1742555432086,-142.42241905,0.00010936,2]
[356497822,1742555432096,-479.14329499,0.00010936,2]
[356497823,1742555432106,-196.56240676,0.00011001,2]
[356497824,1742555432115,-150.0,0.00011016,2]
[356497825,1742555432125,-153.88,0.00011073,2]
[356497826,1742555432135,-164.96,0.000111,2]
[356497827,1742555432145,-4040.0375104,0.00011104,2]
[356497828,1742555432157,-506.90774141,0.00011104,2]
[356497829,1742555432168,-548.1762689,0.00011104,2]
[356497830,1742555432179,-253.37999998,0.00011104,2]
[356497831,1742555432196,-866.44188913,0.00011104,2]
[356497832,1742555432207,-821.26328869,0.00011104,2]
[356497833,1742555432256,-893.81180349,0.00011104,2]
[356497834,1742555432270,-951.45819651,0.00011104,2]
[356497835,1742555432300,-6437.0524636,0.00011104,2]
[356497836,1742555432312,-4942.8568448,0.00011104,2]
[356497940,1742555440273,-10690.13409787,0.00011104,2]
[356497941,1742555441231,-151.0,0.00011052,2]
[356497945,1742555443495,-344.10978337,0.00011052,2]
[356497947,1742555444189,-151.0,0.00011052,2]
[356497951,1742555446264,-353.89021663,0.00011052,2]
[356497952,1742555446274,-8062.40978337,0.00011104,2]
[356497953,1742555446286,-442.95011185,0.00011104,2]
[356497954,1742555446295,-150.0,0.00011298,2]
[356497955,1742555446306,-23900.0,0.00011299,2]
[356497956,1742555446316,-196.56240675,0.00011496,2]
[356497957,1742555446325,-2751.0,0.00011507,2]
[356497958,1742555446335,-153.88,0.00011516,2]
[356497959,1742555446344,-276.02052657,0.00011585,2]
[356497960,1742555446354,-200.0,0.00011597,2]
[356497961,1742555446363,-983.25,0.00011603,2]
[356497963,1742555446372,-154.0005801,0.0001164,2]
[356497964,1742555446381,-11389.28,0.00011689,2]
[356497966,1742555446391,-250.0,0.00011719,2]
[356497968,1742555446400,-449.5644,0.000118,2]
[356497970,1742555446409,-678.74172896,0.0001189,2]
[356497972,1742555446418,-1231.182,0.00011899,2]
[356497974,1742555446428,-151.06,0.000119,2]
[356497976,1742555446437,-1000.0,0.000119,2]
[356497978,1742555446446,-2500.0,0.000119,2]
[356497979,1742555446456,-158.8258547,0.000119,2]
[356497980,1742555446465,-417.37858032,0.000119,2]
[356497981,1742555446475,-949.59532676,0.000119,2]
[356497982,1742555446484,-239.26859399,0.000119,2]
[356497983,1742555446494,-32584.424815,0.000119,2]
[356497984,1742555446503,-449.30064822,0.000119,2]
[356497985,1742555446512,-150.0,0.00011901,2]
[356497986,1742555446522,-350.0,0.00011901,2]
[356497987,1742555446532,-200.0,0.00011904,2]
[356497988,1742555446544,-2000.0,0.0001194,2]
[356497989,1742555446553,-500.0,0.00011973,2]
[356497990,1742555446563,-3229.0943514,0.00011996,2]
[356497991,1742555446572,-2464.9895292,0.00011996,2]
[356497992,1742555446582,-235.3391844,0.00011996,2]
[356497993,1742555446592,-13673.6965559,0.00011996,2]
[356497994,1742555446601,-575.0,0.00012,2]
[356497996,1742555446610,-193206.13782503,0.00012,2]
[356497997,1742555470835,-154.0005802,0.0001164,2]
[356497998,1742555515626,-154.0005802,0.0001164,2]
[356497999,1742555562049,-154.0005802,0.0001164,2]
[356498000,1742555832145,-200.0,0.00010819,2]
[356498001,1742555950031,-150.0,0.00011425,2]
[356498002,1742555979711,929.67,9.557e-05,2]
[356498003,1742556069735,-150.0,0.00011425,2]
[356498004,1742556189130,-150.0,0.00011306,2]
[356498006,1742556468133,4520.03060652,0.00031577,120]
[356498009,1742556547721,-4899.31551871,0.0001,2]
[356498012,1742556547752,-263.22407389,0.0001,2]
[356498014,1742556547789,-4805.89483004,0.0001,2]
[356498015,1742556547823,-5162.5395926,0.0001,2]
[356498017,1742556547857,-5162.5395926,0.0001,2]
[356498019,1742556547889,-5162.5395926,0.0001,2]
[356498020,1742556547934,-5162.5395926,0.0001,2]
[356498021,1742556548003,-5162.5395926,0.0001,2]
[356498022,1742556548057,-5162.5395926,0.0001,2]
[356498023,1742556548102,-5162.5395926,0.0001,2]
[356498024,1742556548288,-5162.5395926,0.0001,2]
[356498032,1742556625581,-16000.0,0.0001,2]
[356498037,1742556632153,-46.6364404,0.0001,2]
[356498039,1742556632163,-249.8765653,0.000101,2]
[356498041,1742556632173,-250.0,0.00011129,2]
[356498042,1742556632182,-451.21,0.00011177,2]
[356498043,1742556632192,-150.0,0.00011221,7]
[356498044,1742556632202,-161.15,0.00011306,2]
[356498045,1742556632211,-12118.56066405,0.0001138,2]
[356498046,1742556632223,-2185.76589894,0.0001138,2]
[356498047,1742556632264,-6642.32301769,0.0001138,2]
[356498048,1742556632275,-592.36206145,0.0001138,2]
[356498049,1742556632320,-513.84048322,0.0001138,2]
[356498050,1742556632332,-676.32114099,0.0001138,2]
[356498051,1742556632343,-1170.82673366,0.0001138,2]
[356498052,1742556632353,-200.0,0.00011425,2]
[356498053,1742556632363,-355.07413989,0.00011757,2]
[356498054,1742556632372,-929.67,0.00011821,2]
[356498055,1742556632381,-984.946,0.0001188,2]
[356498056,1742556632391,-150.0,0.00011899,2]
[356498057,1742556632400,-998.61139485,0.000119,2]
[356498058,1742556632412,-1501.38860515,0.000119,2]
[356498059,1742556632421,-337.06224851,0.000119,2]
[356498060,1742556632433,-2783.68288454,0.000119,2]
[356498061,1742556632442,-993.5108644,0.000119,2]
[356498062,1742556632454,-1211.57071031,0.000119,2]
[356498063,1742556632465,-475.47500001,0.000119,2]
[356498064,1742556632477,-3498.75320503,0.000119,2]
[356498065,1742556632488,-639.900128,0.000119,2]
[356498068,1742556638069,-334.47,0.000119,2]
[356498069,1742556638175,-417.59,0.000119,2]
[356498070,1742556638186,-1949.49163361,0.000119,2]
[356498071,1742556638196,-316.3031463,0.000119,2]
[356498072,1742556638205,-159.512396,0.000119,2]
[356498073,1742556638215,-278.25238688,0.000119,2]
[356498074,1742556638225,-178.94819271,0.000119,2]
[356498075,1742556638235,-700.72765912,0.000119,2]
[356498076,1742556638245,-176.82960098,0.00011904,2]
[356498077,1742556638282,-188.08,0.00011146,2]
[356498078,1742556638292,-23.17039902,0.00011904,2]
[356498079,1742556638303,-500.0,0.00011973,2]
[356498080,1742556638312,-198.68554461,0.00011973,2]
[356498081,1742556638322,-681.86683725,0.00011996,2]
[356498125,1742556640051,-250.00582104,0.000119,2]
[356498131,1742556640320,-709.99087896,0.000119,2]
[356498132,1742556640330,-5695.3575473,0.00011996,2]
[356498133,1742556640494,-1793.39276772,0.00011996,2]
[356498134,1742556640608,-918.92536963,0.00011996,2]
[356498135,1742556640617,-963.68326347,0.00011996,2]
[356498147,1742556643366,-686.14198953,0.00011996,2]
[356498148,1742556643376,-2431.1820695,0.00011996,2]
[356498149,1742556643385,-518.0,0.00012,2]
[356498150,1742556643395,-4641.0073144,0.00012,2]
[356498160,1742556646393,-59245.12540783,0.00012,2]
[356498161,1742556646405,-14836.25,0.00012,2]
[356498162,1742556646416,-27657.16378,0.00012,2]
[356498163,1742556661265,-347.63317631,0.00011996,2]
[356498164,1742556675066,-300.0,0.00011936,2]
[356498168,1742556973763,-1102.39,0.00011101,2]
[356498169,1742556973785,-150.0,0.0001119,2]
[356498170,1742556973806,-1562.1473,0.0001128,2]
[356498171,1742556973830,-350.0,0.00011477,2]
[356498172,1742556973852,-2252.774475,0.00011613,2]
[356498173,1742556973873,-504.0,0.00011671,2]
[356498174,1742556973896,-1000.0,0.00011674,2]
[356498175,1742556973917,-350.0,0.00011734,2]
[356498176,1742556973939,-300.0,0.00011799,2]
[356498177,1742556973960,-528.25863534,0.000118,2]
[356498178,1742556973982,-1803.40036256,0.000118,2]
[356498179,1742556974002,-316.3031463,0.000118,2]
[356498180,1742556974028,-16780.7260808,0.000118,2]
[356498181,1742557006050,836.7,9.337e-05,2]
[356498182,1742557521493,150.0,0.00025,90]
[356498183,1742557544358,150.0,0.00010705,7]
[356498184,1742557596097,-474.46914606,0.00010739,2]
[356498186,1742557670428,-740.6671,0.0001188,6]
[356498197,1742557831645,-1000.0,0.00010628,2]
[356498198,1742557831655,-182.34318577,0.00010693,2]
[356498199,1742557831675,-17.65681423,0.00010693,2]
[356498200,1742557831685,-2068.29143577,0.00010739,2]
[356498201,1742557831696,-233.35941817,0.00010739,2]
[356498202,1742557831708,-150.0,0.00010959,2]
[356498203,1742557831717,-130.32608871,0.00011106,2]
[356498204,1742557831773,-19.94391129,0.00011106,2]
[356498205,1742557831783,-150.27,0.00011155,2]
[356498206,1742557831792,-300.0,0.00011187,2]
[356498207,1742557831801,-6888.91056371,0.00011188,2]
[356498251,1742557839647,-150.0,0.00010804,2]
[356498270,1742557845443,-100.0,0.00010804,2]
[356498271,1742557845454,-3281.99348182,0.00011188,2]
[356498272,1742557845467,-13729.09595447,0.00011188,2]
[356498273,1742557845476,-162.61,0.00011191,2]
[356498274,1742557845486,-150.27,0.00011204,2]
[356498275,1742557845496,-634.17,0.00011225,2]
[356498276,1742557845505,-150.0,0.00011233,2]
[356498277,1742557845515,-150.27,0.00011254,2]
[356498278,1742557845525,-150.0,0.00011263,2]
[356498279,1742557845535,-150.27,0.00011303,2]
[356498280,1742557845545,-150.27,0.00011353,2]
[356498281,1742557845555,-150.27,0.00011402,2]
[356498282,1742557845565,-150.27,0.00011451,2]
[356498283,1742557845575,-150.27,0.00011501,2]
[356498284,1742557845584,-150.27,0.0001155,2]
[356498285,1742557845594,-836.7,0.00011601,2]
[356498286,1742557845604,-201.0,0.00011616,2]
[356498287,1742557845613,-394.60094655,0.00011717,2]
[356498288,1742557845623,-150.0,0.00011799,2]
[356498289,1742557845632,-5383.60763633,0.000118,2]
[356498291,1742558165027,617.22258,0.00011936,6]
[356498293,1742558341904,778.81,9.264e-05,2]
[356498294,1742558596226,150.0,0.00011098,7]
[356498295,1742558780503,50000.0,0.00031575,60]
[356498296,1742558805988,50000.0,0.00031575,30]
[356498299,1742559031680,-164.96768207,0.00010891,2]
[356498300,1742559031692,-200.0,0.00010955,2]
[356498301,1742559031703,-525.03238369,0.00010972,2]
[356498302,1742559031732,-23374.96761631,0.00010972,2]
[356498303,1742559031744,-1000.0,0.00010991,2]
[356498304,1742559031757,-1032.83899525,0.00011015,2]
[356498305,1742559031891,-572.03100475,0.00011015,2]
[356498306,1742559031903,-150.0,0.00011098,2]
[356498307,1742559031916,-129.33306303,0.00011098,2]
[356498308,1742559031930,-370.76858744,0.00011098,2]
[356498314,1742559037858,-305.59834953,0.00011098,2]
[356498315,1742559037868,-360.96,0.00011347,2]
[356498316,1742559037876,-231.61065047,0.00011347,2]
[356498317,1742559037888,-268.38934953,0.00011347,2]
[356498318,1742559037898,-302.03340478,0.00011347,2]
[356498319,1742559037907,-394.60094656,0.00011509,2]
[356498320,1742559037915,-87.77491605,0.00011528,2]
[356498341,1742559039815,-489.02497615,0.00011528,2]
[356498342,1742559039974,-202.0101078,0.00011528,2]
[356498343,1742559039984,-363.23,0.000117,2]
[356498344,1742559039993,-156.66,0.00011701,2]
[356498345,1742559040003,-150.0,0.00011799,2]
[356498346,1742559040012,-452.79311604,0.000118,2]
[356498347,1742559040022,-12531.0504,0.000118,2]
[356498348,1742559040031,-721.36014502,0.000118,2]
[356498349,1742559040040,-166.03096228,0.000118,2]
[356498350,1742559040050,-185.50159126,0.000118,2]
[356498351,1742559040059,-494.40795176,0.00011807,2]
[356498352,1742559040068,-452.79311598,0.00011817,2]
[356498353,1742559040077,-452.79311598,0.00011833,2]
[356498354,1742559040086,-452.79311598,0.0001185,2]
[356498355,1742559040095,-185.50159125,0.0001185,2]
[356498356,1742559040104,-787.957,0.00011856,2]
[356498357,1742559040113,-452.79311598,0.00011867,2]
[356498358,1742559040122,-452.79311598,0.00011883,2]
[356498359,1742559040131,-187.4421692,0.00011899,2]
[356498360,1742559040141,-145377.404803,0.000119,2]
[356498366,1742559043519,-467.15177274,0.000118,2]
[356498367,1742559043528,-2374.14819726,0.000119,2]
[356498368,1742559045610,-371.96564909,0.000119,2]
[356498407,1742559334338,726.2,9.426e-05,2]
[356498408,1742559387102,617.22259,0.0001198,6]
[356498409,1742559672630,150.0,0.00011146,7]
[356498410,1742559692387,617.22259,0.0001198,6]
[356498411,1742560011830,308.61129,0.000119,6]
[356498412,1742560074771,-151.0,0.0001,2]
[356498413,1742560082757,-154.0005802,0.0001,2]
[356498414,1742560087838,597.63899735,9e-05,2]
[356498422,1742560202473,-150.0,0.0001,2]
[356498424,1742560227320,-150.0,0.0001,2]
[356498437,1742560231779,-346.05801936,0.0001,2]
[356498438,1742560231790,-350.0,0.00010479,2]
[356498439,1742560231799,-1000.0,0.0001061,2]
[356498440,1742560231813,-150.0,0.00010959,2]
[356498441,1742560231823,-350.0,0.00011,2]
[356498442,1742560231832,-350.0,0.00011,2]
[356498443,1742560231842,-151.78,0.0001112,2]
[356498444,1742560231852,-161.15,0.00011129,2]
[356498445,1742560231863,-151.78,0.00011161,2]
[356498446,1742560231873,-512.98,0.00011177,2]
[356498447,1742560231882,-151.78,0.00011201,2]
[356498448,1742560231892,-151.78,0.00011242,2]
[356498449,1742560231902,-151.78,0.00011282,2]
[356498450,1742560231911,-151.78,0.00011322,2]
[356498451,1742560231920,-151.78,0.00011363,2]
[356498452,1742560231930,-250.0,0.0001138,2]
[356498453,1742560231939,-151.78,0.00011403,2]
[356498454,1742560231949,-151.78,0.00011444,2]
[356498455,1742560231959,-151.78,0.00011484,2]
[356498456,1742560231969,-175.09,0.00011487,2]
[356498457,1742560231979,-151.78,0.00011525,2]
[356498458,1742560231988,-546.24,0.00011542,2]
[356498459,1742560231997,-151.78,0.00011565,2]
[356498460,1742560232007,-300.0,0.00011569,2]
[356498461,1742560232016,-1420.0,0.0001157,2]
[356498462,1742560232026,-572.0,0.0001157,2]
[356498463,1742560232035,-1272.0,0.0001157,2]
[356498464,1742560232045,-787.0,0.0001157,2]
[356498465,1742560232054,-4083.0,0.0001157,2]
[356498466,1742560232064,-1447.42,0.0001157,2]
[356498467,1742560232073,-907.0,0.0001157,2]
[356498468,1742560232083,-543.033,0.0001157,2]
[356498469,1742560232092,-1115.0,0.0001157,2]
[356498470,1742560232101,-1280.0,0.0001157,2]
[356498471,1742560232110,-642.0,0.0001157,2]
[356498472,1742560232119,-2035.0,0.0001157,2]
[356498473,1742560232129,-160.9733965,0.0001164,2]
[356498474,1742560232138,-726.2,0.0001169,2]
[356498475,1742560232148,-5932.6553,0.000118,2]
[356498476,1742560232157,-161.26161954,0.000118,2]
[356498477,1742560232167,-501.04538227,0.000118,2]
[356498478,1742560232177,-5770.88116016,0.000118,2]
[356498479,1742560232186,-66373.54338491,0.000118,2]
[356498480,1742560232212,-773.44489308,0.000118,2]
[356498481,1742560232224,-1248.674,0.000118,2]
[356498552,1742560245752,-765.37,0.00011342,2]
[356498553,1742560245762,-3938.0,0.0001157,2]
[356498554,1742560245771,-645.0,0.0001157,2]
[356498555,1742560245782,-500.0,0.00011799,2]
[356498556,1742560245795,-500.0,0.00011799,2]
[356498557,1742560245805,-10207.68070106,0.000118,2]
[356498558,1742560245814,-185.50159125,0.000118,2]
[356498559,1742560245824,-18814.04518522,0.000118,2]
[356498560,1742560245834,-316.53849466,0.000118,2]
[356498561,1742560245843,-200.0,0.00011805,2]
[356498562,1742560245852,-161.26161954,0.00011825,2]
[356498563,1742560245863,-161.26161954,0.0001185,2]
[356498564,1742560245872,-18814.0451852,0.0001185,2]
[356498565,1742560245882,-630.365,0.00011856,2]
[356498566,1742560245892,-161.26161954,0.00011875,2]
[356498567,1742560245901,-211901.9956163,0.000119,2]
[356498568,1742560245917,-3304.18433872,0.000119,2]
[356498570,1742560481084,709.51,9.448e-05,2]
[356498571,1742560685406,265.84534294,9.429e-05,7]
[356498572,1742560738004,2108.64,0.00031571,30]
[356498577,1742560834684,150.0,0.0001114,7]
[356498578,1742560841919,563.10561,0.00012,3]
[356498579,1742560842238,563.10561,0.00012,3]
[356498580,1742560842571,563.10562,0.00012,3]
[356498581,1742560995890,266.2131,0.000119,6]
[356498582,1742561144030,1000.0,0.00031518,30]
[356498583,1742561144674,1000.0,0.00031518,30]
[356498584,1742561145298,1000.0,0.00031518,30]
[356498585,1742561148169,1000.0,0.00031518,30]
[356498586,1742561148779,1000.0,0.00031518,30]
[356498587,1742561149382,1000.0,0.00031518,30]
[356498588,1742561149969,1000.0,0.00031518,30]
[356498589,1742561150586,1000.0,0.00031518,30]
[356498590,1742561151834,1000.0,0.00031518,30]
[356498591,1742561152516,1000.0,0.00031518,30]
[356498592,1742561153130,1000.0,0.00031518,30]
[356498593,1742561153738,1000.0,0.00031518,30]
[356498594,1742561154359,1000.0,0.00031518,30]
[356498595,1742561154940,1000.0,0.00031518,30]
[356498596,1742561155559,1000.0,0.00031518,30]
[356498597,1742561156163,1000.0,0.00031518,30]
[356498598,1742561156785,1000.0,0.00031518,30]
[356498599,1742561157843,1000.0,0.00031518,30]
[356498600,1742561158439,1000.0,0.00031518,30]
[356498601,1742561159203,450.97078566,0.00031518,30]
[356498602,1742561217100,-150.0,0.00010964,2]
[356498603,1742561217123,-324.46914606,0.00010979,2]
[356498604,1742561232311,257.17607,0.000119,6]
[356498615,1742561355058,-1000.0,0.00010964,2]
[356498616,1742561355079,-14.41085394,0.00010979,2]
[356498617,1742561355100,-200.0,0.0001114,2]
[356498618,1742561355126,-150.0,0.00011171,2]
[356498619,1742561355178,-219.39314108,0.00011202,2]
[356498620,1742561355225,-173.75,0.00011202,2]
[356498621,1742561355277,-288.76,0.0001128,2]
[356498622,1742561355323,-250.0,0.00011302,2]
[356498623,1742561355376,-300.0,0.00011374,2]
[356498624,1742561355432,-7403.68600498,0.00011375,2]
[356498625,1742561358782,-10000.0,0.00011375,2]
[356498626,1742561359206,-6496.31399502,0.00011375,2]
[356498627,1742561359230,-179.23,0.00011525,2]
[356498628,1742561359256,-434.12775321,0.00011708,2]
[356498629,1742561359279,-709.51,0.00011711,2]
[356498630,1742561359302,-190.039,0.0001176,2]
[356498631,1742561359324,-1990.77925177,0.0001176,2]
[356498632,1742561359490,-1947.22074823,0.0001176,2]
[356498633,1742561359511,-2035.0,0.0001176,2]
[356498634,1742561359533,-1280.0,0.0001176,2]
[356498635,1742561359555,-642.0,0.0001176,2]
[356498636,1742561359576,-1014.0,0.0001176,2]
[356498637,1742561359596,-572.0,0.0001176,2]
[356498638,1742561359618,-1115.0,0.0001176,2]
[356498639,1742561359640,-1394.77925177,0.0001176,2]
[356498640,1742561359948,-25.22074823,0.0001176,2]
[356498641,1742561359970,-1272.0,0.0001176,2]
[356498642,1742561359991,-787.0,0.0001176,2]
[356498643,1742561360013,-907.0,0.0001176,2]
[356498644,1742561360035,-4083.0,0.0001176,2]
[356498645,1742561360056,-1430.0,0.0001176,2]
[356498646,1742561360078,-542.0,0.0001176,2]
[356498647,1742561360100,-161.26161954,0.000118,2]
[356498648,1742561360124,-792.51763223,0.000118,2]
[356498649,1742561360718,-2682.5920411,0.000118,2]
[356498650,1742561360740,-316.5384946,0.000118,2]
[356498651,1742561360762,-6271.34839508,0.000118,2]